bitfinex/quotes_ETHUSD_20250406
["timestamp","ask_amount","ask_price","bid_price","bid_amount"]
[1743923139711,14.15150249,1796.5,1796.4,40.80824634]
[1743923140772,14.15150249,1796.5,1796.4,43.80824634]
[1743923141577,14.15150249,1796.5,1796.4,40.80824634]
[1743923144215,5.71641503,1796.7,1796.6,4.44624]
[1743923144380,5.71641503,1796.7,1796.6,5.72283514]
[1743923146494,5.71641503,1796.7,1796.6,6.53763514]
[1743923147436,5.71641503,1796.7,1796.6,12.34763514]
[1743923148297,14.23092582,1796.7,1796.6,12.34763514]
[1743923148744,14.23092582,1796.7,1796.6,6.53763514]
[1743923149047,14.23092582,1796.7,1796.6,6.24533314]
[1743923149344,18.51642203,1796.7,1796.6,0.44233314]
[1743923149641,18.51642203,1796.7,1796.5,0.55]
[1743923149944,14.23092582,1796.7,1796.6,0.44197341]
[1743923150735,14.23092582,1796.7,1796.6,5.69501341]
[1743923150911,14.23092582,1796.7,1796.6,6.65415675]
[1743923151438,14.23092582,1796.7,1796.6,2.75791675]
[1743923151812,14.23092582,1796.7,1796.6,6.65415675]
[1743923152039,8.51451079,1796.7,1796.6,6.65415675]
[1743923152803,8.51451079,1796.7,1796.6,31.71115675]
[1743923155234,8.51451079,1796.7,1796.6,30.90435675]
[1743923160445,8.51451079,1796.7,1796.6,31.71115675]
[1743923161326,6.48035567,1797.3,1797.1,0.55]
[1743923161703,6.48035567,1797.3,1797.2,0.4410608]
[1743923162100,2.71725567,1797.3,1797.2,4.8860008]
[1743923162419,0.7631,1797.5,1797.3,4.44471]
[1743923162725,3.0,1797.6,1797.4,0.44051695]
[1743923163043,3.0,1797.6,1797.3,4.44471]
[1743923163204,3.0,1797.6,1797.5,0.44040689]
[1743923163405,3.0,1797.6,1797.3,4.44471]
[1743923163606,3.0,1797.6,1797.4,0.44051695]
[1743923163834,3.0,1797.6,1797.3,5.32753501]
[1743923164048,3.0,1797.6,1797.4,0.44051695]
[1743923164539,3.0,1797.6,1797.3,1.43282501]
[1743923164745,3.0,1797.6,1797.5,0.44040689]
[1743923164928,3.0,1797.6,1797.4,6.17051695]
[1743923165243,3.0,1797.6,1797.5,0.44040689]
[1743923165453,5.04229621,1797.7,1797.5,0.44040689]
[1743923165969,0.7568,1797.7,1797.6,0.55]
[1743923166148,2.71725567,1797.8,1797.6,0.55]
[1743923166351,2.71725567,1797.8,1797.6,0.98840914]
[1743923168026,5.09229621,1797.9,1797.6,0.98840914]
[1743923168421,5.09229621,1797.9,1797.6,7.87583005]
[1743923168422,0.05,1797.9,1797.6,7.87583005]
[1743923168668,0.05,1797.9,1797.8,0.55]
[1743923168979,0.05,1797.9,1797.8,6.275]
[1743923169180,0.05,1797.9,1797.8,6.71297343]
[1743923169384,0.05,1797.9,1797.8,11.39321343]
[1743923169670,0.05,1797.9,1797.8,12.92190477]
[1743923175738,5.71042216,1798.3,1798.0,4.44321]
[1743923175940,0.05,1798.9,1798.5,0.55]
[1743923176166,0.05,1798.9,1798.6,30.737]
[1743923176333,0.05,1798.9,1798.6,31.17233355]
[1743923176738,4.28549621,1798.7,1798.6,25.47733355]
[1743923176938,4.28549621,1798.7,1798.6,31.17233355]
[1743923177172,5.10299621,1798.8,1798.6,31.72233355]
[1743923177372,0.05,1798.9,1798.7,0.55]
[1743923177777,0.05,1798.9,1798.8,0.43288661]
[1743923177976,0.05,1798.9,1798.8,0.98288661]
[1743923181760,0.05,1798.9,1798.8,0.43288661]
[1743923183185,5.91846462,1798.9,1798.8,0.43288661]
[1743923183387,0.7728,1798.7,1798.6,25.042]
[1743923183895,0.8228,1798.9,1798.6,25.592]
[1743923184191,0.8228,1798.9,1798.6,26.02508848]
[1743923185504,7.28549621,1798.8,1798.6,25.47508848]
[1743923188569,0.8228,1798.9,1798.6,25.47508848]
[1743923188772,0.8228,1798.9,1798.7,2.54750885]
[1743923189093,0.8228,1798.9,1798.8,0.43267125]
[1743923192282,0.8228,1798.9,1798.8,0.98267125]
[1743923196796,7.71406,1798.9,1798.8,0.43267125]
[1743923197196,11.60551,1798.9,1798.6,25.042]
[1743923197385,4.28549621,1798.8,1798.6,25.042]
[1743923197592,7.28549621,1798.8,1798.7,0.43283499]
[1743923198560,3.0,1798.8,1798.7,3.53031849]
[1743923199308,16.13554099,1798.9,1798.7,3.53031849]
[1743923199464,11.85004478,1798.9,1798.7,3.53031849]
[1743923199670,11.85004478,1798.9,1798.8,0.55]
[1743923199995,11.85004478,1798.9,1798.8,0.98285074]
[1743923201669,11.85004478,1798.9,1798.8,1.33588416]
[1743923203697,0.05,1798.9,1798.8,1.33588416]
[1743923205710,0.05,1798.9,1798.8,6.95788416]
[1743923206621,5.73770353,1798.9,1798.8,6.95788416]
[1743923209800,6.18776,1798.9,1798.8,6.95788416]
[1743923222427,6.18776,1798.9,1798.8,7.8241725]
[1743923222736,6.18776,1798.9,1798.8,11.66006416]
[1743923223403,6.18776,1798.9,1798.8,7.76858416]
[1743923225842,6.18776,1798.9,1798.8,11.66006416]
[1743923226712,0.05,1798.9,1798.8,11.66006416]
[1743923230445,0.05,1798.9,1798.8,18.94556037]
[1743923230844,1e-05,1798.9,1798.8,18.94556037]
[1743923231046,7.05275188,1799.9,1799.6,5.25714]
[1743923231249,4.33549621,1799.9,1799.7,6.054714]
[1743923231407,4.33549621,1799.9,1799.8,0.55]
[1743923231814,0.05,1799.9,1799.8,0.97982166]
[1743923232210,0.05,1799.9,1799.8,4.86914166]
[1743923232764,0.05,1799.9,1799.8,5.68654166]
[1743923232974,0.05,1799.9,1799.8,7.30515357]
[1743923233128,0.05,1799.9,1799.8,7.24960423]
[1743923234112,0.05,1799.9,1799.8,7.30514632]
[1743923234275,0.05,1799.9,1799.8,7.24960423]
[1743923234643,0.05,1799.9,1799.8,14.94289446]
[1743923235259,4.28549621,1800.8,1800.6,0.55]
[1743923235574,0.05,1800.9,1800.8,0.55]
[1743923235983,3.93694,1800.9,1800.8,0.42648481]
[1743923236135,4.69244,1800.9,1800.8,0.42648481]
[1743923236331,0.8055,1800.9,1800.8,0.42648481]
[1743923238268,4.69244,1800.9,1800.8,0.42648481]
[1743923238781,0.8055,1800.9,1800.8,0.42648481]
[1743923241485,7.69244,1800.9,1800.8,0.42648481]
[1743923241674,13.26439883,1800.9,1800.8,0.42648481]
[1743923242485,13.26439883,1800.9,1800.7,25.018]
[1743923242486,11.92815621,1800.8,1800.7,25.018]
[1743923243382,3.88769,1800.6,1800.3,5.519]
[1743923243583,4.28549621,1800.4,1800.3,5.519]
[1743923244214,4.28549621,1800.4,1800.3,5.87164829]
[1743923244544,4.28549621,1800.4,1800.3,7.00881312]
[1743923246886,4.28549621,1800.6,1800.3,7.00881312]
[1743923248365,4.28549621,1800.6,1800.4,0.55]
[1743923248768,4.28549621,1800.6,1800.5,0.35245266]
[1743923250446,5.04919621,1800.6,1800.3,6.65616483]
[1743923250644,0.7637,1800.6,1800.4,0.55]
[1743923250864,4.28549621,1800.5,1800.4,0.90258611]
[1743923252986,4.28549621,1800.5,1800.4,25.90858611]
[1743923258392,4.28549621,1800.5,1800.4,31.37958611]
[1743923262305,4.28549621,1800.5,1800.4,34.5762612]
[1743923264823,7.28549621,1800.5,1800.4,30.82958611]
[1743923265027,11.99759621,1800.5,1800.4,25.35858611]
[1743923267416,11.99759621,1800.5,1800.4,0.35258611]
[1743923267590,7.28549621,1800.5,1800.4,0.90258611]
[1743923269309,11.17329621,1800.5,1800.4,0.35258611]
[1743923275225,3.88863,1800.2,1799.8,2.32786257]
[1743923275523,4.28549621,1799.9,1799.8,31.2338]
[1743923276502,4.28549621,1799.9,1799.8,31.7838]
[1743923276702,4.28549621,1799.9,1799.8,34.96218]
[1743923277500,4.28549621,1799.9,1799.8,28.73438]
[1743923277704,4.28549621,1799.9,1799.8,34.19038]
[1743923278428,4.28549621,1799.9,1799.8,34.95518]
[1743923280238,4.28549621,1799.9,1799.8,29.49918]
[1743923280438,4.28549621,1799.9,1799.8,25.006]
[1743923280623,11.96179621,1799.9,1799.8,25.006]
[1743923280826,4.67708,1799.6,1799.2,0.7648]
[1743923281135,4.28549621,1799.3,1799.2,0.7648]
[1743923281307,4.28549621,1799.3,1799.2,8.80118]
[1743923281503,4.28549621,1799.5,1799.2,8.80118]
[1743923281703,4.28549621,1799.5,1799.3,0.55]
[1743923282632,4.28549621,1799.5,1799.2,8.80118]
[1743923282802,3.88984,1799.6,1799.4,0.2716336]
[1743923283002,4.28549621,1799.5,1799.4,0.2716336]
[1743923283404,4.28549621,1799.5,1799.2,8.80118]
[1743923283638,3.88984,1799.6,1799.4,0.2716336]
[1743923283837,3.88984,1799.6,1799.3,0.27174342]
[1743923284000,3.88984,1799.6,1799.3,0.55]
[1743923284201,3.88984,1799.6,1799.4,0.2716336]
[1743923284740,4.28549621,1799.5,1799.4,0.2716336]
[1743923285941,5.07209621,1799.5,1799.4,0.2716336]
[1743923286339,8.96205621,1799.5,1799.4,0.2716336]
[1743923286546,10.24724583,1799.5,1799.4,0.2716336]
[1743923286705,10.24724583,1799.5,1799.1,30.454]
[1743923287040,4.28549621,1799.2,1799.1,31.004]
[1743923288555,4.28549621,1799.2,1799.1,25.559]
[1743923289048,4.28549621,1799.2,1799.1,25.83096311]
[1743923291831,8.08459621,1799.2,1799.1,25.28096311]
[1743923292157,17.45820704,1799.2,1799.1,25.28096311]
[1743923293139,20.17546271,1799.2,1799.1,0.27196311]
[1743923293343,3.89151,1798.8,1798.6,5.439]
[1743923293548,8.08459621,1798.7,1798.6,5.439]
[1743923293862,11.97632621,1798.7,1798.5,0.55]
[1743923294061,11.97632621,1798.7,1798.4,25.018]
[1743923294577,8.08459621,1798.7,1798.5,0.55]
[1743923295291,11.97632621,1798.7,1798.5,0.55]
[1743923295780,3.89197,1798.6,1798.4,25.018]
[1743923296084,8.17762621,1798.5,1798.4,25.018]
[1743923296742,11.17762621,1798.5,1798.4,25.018]
[1743923297525,3.0,1798.4,1798.1,0.05]
[1743923297720,8.17827621,1798.2,1798.1,0.05]
[1743923297943,4.28549621,1798.2,1798.1,0.05]
[1743923298167,8.17827621,1798.2,1798.1,0.05]
[1743923298982,11.17827621,1798.2,1798.1,0.05]
[1743923299132,4.69253,1797.9,1797.6,25.022]
[1743923299338,4.28549621,1797.7,1797.6,31.013]
[1743923300198,4.28549621,1797.7,1797.6,30.463]
[1743923300483,8.58809,1797.5,1797.1,0.05]
[1743923300688,4.28549621,1797.2,1797.1,0.5996]
[1743923300897,4.28549621,1797.2,1797.1,0.05]
[1743923301641,4.69359,1797.5,1797.2,0.55]
[1743923301642,4.28549621,1797.4,1797.2,0.55]
[1743923301846,4.28549621,1797.4,1797.2,1.3534]
[1743923302744,4.28549621,1797.4,1797.2,1.883243]
[1743923303091,4.28549621,1797.4,1797.2,5.778163]
[1743923303241,4.28549621,1797.4,1797.2,1.883243]
[1743923303449,4.28549621,1797.4,1797.1,0.6]
[1743923303642,4.28549621,1797.2,1797.1,5.501]
[1743923303949,11.93183621,1797.2,1797.1,0.05]
[1743923304154,8.03689621,1797.2,1797.1,0.05]
[1743923304885,8.03689621,1797.2,1797.1,0.29117775]
[1743923307190,7.28549621,1797.2,1797.1,0.29117775]
[1743923307681,4.28549621,1797.2,1797.1,0.84117775]
[1743923307980,0.7514,1797.4,1797.2,0.55]
[1743923307981,4.28549621,1797.4,1797.2,0.55]
[1743923308172,4.28549621,1797.2,1797.1,0.29117775]
[1743923308481,4.28549621,1797.2,1797.1,0.05]
[1743923308669,4.28549621,1797.2,1797.1,3.94516]
[1743923308976,4.28549621,1797.2,1797.1,5.334197]
[1743923309188,4.28549621,1797.2,1797.1,1.439037]
[1743923310147,2.71725567,1797.6,1797.3,0.55]
[1743923310148,4.28549621,1797.4,1797.3,0.55]
[1743923310353,4.28549621,1797.6,1797.3,9.9096]
[1743923310559,4.28549621,1797.6,1797.5,0.55]
[1743923311287,4.28549621,1797.8,1797.7,0.55]
[1743923311489,4.28549621,1797.8,1797.7,6.016]
[1743923311693,4.28549621,1797.8,1797.7,9.90986]
[1743923311896,4.28549621,1797.8,1797.7,11.290236]
[1743923312125,4.28549621,1798.0,1797.7,11.290236]
[1743923312758,4.28549621,1797.8,1797.7,7.396376]
[1743923313606,4.28549621,1798.0,1797.7,11.290236]
[1743923313760,4.28549621,1798.1,1797.9,0.55]
[1743923313958,4.87441537,1798.1,1797.7,5.466]
[1743923314199,0.7529,1797.8,1797.4,5.47]
[1743923314371,4.28549621,1797.7,1797.4,5.47]
[1743923317290,8.17979621,1797.5,1797.1,0.05]
[1743923317490,4.28549621,1797.3,1797.1,5.515]
[1743923318084,0.7529,1797.4,1797.1,5.515]
[1743923318784,4.28549621,1797.3,1797.1,5.515]
[1743923319178,4.28549621,1797.3,1797.2,0.23972955]
[1743923319394,7.28549621,1797.3,1797.2,0.23972955]
[1743923320312,2.71725567,1797.5,1797.2,0.23972955]
[1743923320495,3.0,1797.4,1797.2,0.23972955]
[1743923322810,3.0,1797.4,1797.2,1.05702955]
[1743923323105,3.0,1797.4,1797.2,1.94674751]
[1743923324064,4.70404,1797.8,1797.5,0.55]
[1743923324065,0.8104,1797.8,1797.5,0.55]
[1743923324302,7.00275188,1797.9,1797.6,1.05755765]
[1743923324481,7.00275188,1797.9,1797.6,0.24025765]
[1743923324682,3.0,1797.8,1797.6,0.24025765]
[1743923326105,7.00275188,1797.9,1797.6,0.24025765]
[1743923326481,7.00275188,1797.9,1797.6,0.70871042]
[1743923326804,4.28549621,1798.0,1797.7,0.55]
[1743923327027,4.28549621,1798.0,1797.9,0.55]
[1743923327231,4.28549621,1798.1,1797.9,0.79010361]
[1743923327530,7.00275188,1798.3,1797.9,4.68352361]
[1743923327733,7.00275188,1798.3,1797.9,6.16866197]
[1743923327916,2.71725567,1798.3,1798.1,0.55]
[1743923328094,2.71725567,1798.3,1798.2,6.2857]
[1743923328296,2.71725567,1798.3,1798.2,6.52473425]
[1743923329207,2.71725567,1798.3,1798.2,7.07473425]
[1743923329532,2.71725567,1798.3,1798.2,7.83720767]
[1743923329703,2.71725567,1798.3,1798.2,6.24503425]
[1743923330636,7.36761567,1798.3,1798.2,0.23903425]
[1743923330788,10.36761567,1798.3,1798.0,5.457]
[1743923330987,4.28549621,1798.2,1798.1,0.23824683]
[1743923331689,11.93607621,1798.2,1798.1,0.23824683]
[1743923331888,3.89307,1798.1,1797.8,25.045]
[1743923332113,4.28549621,1798.0,1797.9,0.23851958]
[1743923332631,4.28549621,1798.0,1797.8,25.045]
[1743923332832,4.28549621,1798.0,1797.9,0.23851958]
[1743923333159,7.28549621,1798.0,1797.8,25.045]
[1743923333318,11.17880621,1798.0,1797.9,0.23851958]
[1743923333714,6.89331,1798.0,1797.8,25.045]
[1743923333942,6.89331,1798.0,1797.9,0.23851958]
[1743923334349,3.0,1797.9,1797.8,25.045]
[1743923335162,6.89343,1797.9,1797.8,25.045]
[1743923336341,3.0,1797.9,1797.8,25.045]
[1743923337569,3.0,1798.0,1797.8,28.6453]
[1743923338066,6.60981567,1798.3,1797.8,28.6453]
[1743923338286,3.0,1798.2,1797.8,28.6453]
[1743923338634,6.89281,1798.2,1797.8,28.6453]
[1743923339169,3.0,1798.2,1797.8,28.6453]
[1743923339591,2.71725567,1798.3,1798.0,0.8297]
[1743923343201,2.71725567,1798.3,1798.1,5.989]
[1743923343354,3.0,1798.5,1798.2,3.89278]
[1743923343759,3.0,1798.5,1798.2,3.94838481]
[1743923344103,3.0,1798.5,1798.2,3.89278]
[1743923344255,3.0,1798.5,1798.2,5.270244]
[1743923344457,3.0,1798.5,1798.2,1.4330686]
[1743923344677,3.8917,1798.7,1798.2,1.377464]
[1743923345051,3.8917,1798.7,1798.3,1.3315]
[1743923345648,3.0,1798.7,1798.3,1.3315]
[1743923346156,8.63433849,1798.8,1798.3,1.3315]
[1743923346480,8.63433849,1798.8,1798.3,1.3871003]
[1743923346848,3.0,1798.8,1798.4,3.8923]
[1743923347054,3.0,1798.8,1798.6,0.55]
[1743923347258,11.35116416,1799.0,1798.6,0.55]
[1743923347487,3.0,1798.9,1798.6,0.55]
[1743923347694,3.89183,1798.7,1798.5,5.431]
[1743923348367,7.78373,1798.7,1798.5,5.431]
[1743923348576,3.89191,1798.6,1798.5,5.431]
[1743923348979,6.89191,1798.6,1798.5,5.431]
[1743923349306,6.89191,1798.6,1798.5,5.66620286]
[1743923351512,6.89191,1798.6,1798.5,0.23520286]
[1743923351660,3.89221,1798.5,1798.3,5.43]
[1743923351859,3.89221,1798.5,1798.4,0.2353128]
[1743923352089,3.89221,1798.5,1798.3,5.43]
[1743923352388,3.89221,1798.5,1798.4,0.2353128]
[1743923352687,6.89191,1798.6,1798.3,5.43]
[1743923352888,6.89191,1798.6,1798.4,0.2353128]
[1743923353189,6.89191,1798.6,1798.3,6.028]
[1743923353371,6.89191,1798.6,1798.5,0.23520286]
[1743923353574,6.89191,1798.6,1798.4,0.2353128]
[1743923353872,11.17038516,1798.6,1798.5,0.23520286]
[1743923354069,11.17038516,1798.6,1798.3,6.028]
[1743923354265,11.17038516,1798.6,1798.4,0.2353128]
[1743923354460,15.06245516,1798.6,1798.3,6.028]
[1743923354660,15.06245516,1798.6,1798.4,0.2353128]
[1743923354861,15.06245516,1798.6,1798.3,6.028]
[1743923355090,15.06245516,1798.6,1798.4,0.2353128]
[1743923355385,15.06245516,1798.6,1798.3,6.028]
[1743923355585,11.17038516,1798.6,1798.5,0.23520286]
[1743923355787,11.17038516,1798.6,1798.4,0.2353128]
[1743923355993,11.17038516,1798.6,1798.5,0.23520286]
[1743923356697,11.17038516,1798.6,1798.3,6.028]
[1743923356895,11.17038516,1798.6,1798.4,0.2353128]
[1743923357097,7.27847516,1798.6,1798.3,6.028]
[1743923357304,7.27847516,1798.6,1798.4,0.2353128]
[1743923357482,7.27847516,1798.6,1798.3,6.028]
[1743923357673,7.27847516,1798.6,1798.4,0.23547105]
[1743923357870,7.27847516,1798.6,1798.3,6.028]
[1743923358071,7.27847516,1798.6,1798.4,0.23547105]
[1743923358404,7.27847516,1798.6,1798.3,6.028]
[1743923358600,7.27847516,1798.6,1798.5,0.23536111]
[1743923358808,7.27847516,1798.6,1798.4,0.23547105]
[1743923358974,3.0,1798.6,1798.5,0.23536111]
[1743923359170,3.0,1798.7,1798.5,0.23536111]
[1743923359373,3.0,1798.7,1798.6,0.55]
[1743923359772,3.0,1798.7,1798.6,0.78525119]
[1743923363814,4.27847516,1798.8,1798.6,0.78525119]
[1743923364613,10.88679083,1799.0,1798.7,0.8211]
[1743923364809,4.27847516,1799.0,1798.7,6.2171]
[1743923365017,4.27847516,1799.0,1798.8,0.85677654]
[1743923365311,12.06074516,1799.0,1798.8,0.85677654]
[1743923365614,12.06074516,1799.0,1798.8,0.23506654]
[1743923365977,8.97884516,1799.2,1798.8,0.23506654]
[1743923366178,12.11355284,1799.4,1798.9,0.60558711]
[1743923366509,6.8904,1799.3,1799.0,1.05553885]
[1743923366714,6.8904,1799.3,1799.1,5.396]
[1743923366908,6.8904,1799.3,1799.2,0.23400918]
[1743923367103,6.8904,1799.3,1799.1,5.396]
[1743923367304,3.0,1799.3,1799.2,0.23384274]
[1743923367499,3.0,1799.3,1799.1,6.01771]
[1743923367696,3.0,1799.3,1799.2,0.23381896]
[1743923367902,3.0,1799.3,1799.2,0.55]
[1743923368099,3.0,1799.3,1799.2,0.78381896]
[1743923368286,3.0,1799.3,1799.2,1.46397186]
[1743923368829,2.71725567,1799.4,1799.2,1.46397186]
[1743923369590,3.93912,1799.9,1799.2,1.46397186]
[1743923369591,8.16779516,1799.8,1799.4,0.55]
[1743923369799,8.16779516,1799.8,1799.6,0.55]
[1743923369988,8.16779516,1799.8,1799.6,1.1439]
[1743923370180,11.16779516,1799.8,1799.7,0.23168716]
[1743923370591,11.16779516,1799.8,1799.6,1.1439]
[1743923370797,11.16779516,1799.8,1799.7,0.23168716]
[1743923371005,11.93659516,1799.8,1799.7,0.23168716]
[1743923371209,3.88975,1799.6,1799.2,6.0661529]
[1743923371404,4.27847516,1799.4,1799.2,6.0661529]
[1743923371609,4.27847516,1799.4,1799.3,0.23173983]
[1743923372116,4.27847516,1799.6,1799.3,0.78173983]
[1743923372891,8.16823516,1799.6,1799.3,0.78173983]
[1743923373293,8.16823516,1799.6,1799.3,1.4665291]
[1743923373820,7.27847516,1799.7,1799.4,0.55]
[1743923374019,7.27847516,1799.7,1799.4,1.3632]
[1743923374226,4.27847516,1799.7,1799.5,0.23152019]
[1743923374428,4.27847516,1799.7,1799.6,5.387]
[1743923374727,4.27847516,1799.7,1799.6,5.61839282]
[1743923375423,8.16800516,1799.7,1799.6,5.61839282]
[1743923377026,11.93680516,1799.7,1799.6,5.61839282]
[1743923377233,11.93680516,1799.7,1799.6,0.23139282]
[1743923377594,11.93680516,1799.7,1799.2,0.55]
[1743923377595,3.88996,1799.5,1799.2,0.55]
[1743923377799,4.27847516,1799.4,1799.3,5.379]
[1743923378927,3.88996,1799.5,1799.3,5.379]
[1743923379095,3.88996,1799.5,1799.3,5.61065199]
[1743923381135,3.88996,1799.5,1799.3,0.23165199]
[1743923381136,8.93745516,1799.4,1799.3,0.23165199]
[1743923381432,12.82783516,1799.4,1799.2,5.373]
[1743923381730,12.82783516,1799.4,1799.3,0.23142355]
[1743923382500,15.82783516,1799.4,1799.3,0.23142355]
[1743923382705,3.89098,1799.1,1798.8,5.375]
[1743923382899,8.16945516,1799.1,1798.9,0.5375]
[1743923384503,12.06044516,1799.1,1798.9,0.5375]
[1743923384732,8.16938516,1799.1,1798.8,5.92]
[1743923384934,4.27847516,1799.1,1798.8,5.92]
[1743923385334,3.0,1799.2,1798.9,0.8247]
[1743923385525,2.71725567,1799.3,1798.9,4.71595]
[1743923385730,2.71725567,1799.3,1799.2,1.3747]
[1743923385908,3.89002,1799.5,1799.2,6.1967]
[1743923386523,3.89026,1799.4,1799.2,6.1967]
[1743923387324,8.16873516,1799.4,1799.2,6.1967]
[1743923392119,8.16844516,1799.5,1799.2,6.1967]
[1743923392332,3.0,1799.5,1799.3,0.61967]
[1743923393333,3.88941,1799.8,1799.4,0.55]
[1743923393640,3.88941,1799.8,1799.6,0.55]
[1743923393844,3.88941,1799.8,1799.6,5.908]
[1743923394161,6.8894,1799.8,1799.7,0.21220146]
[1743923394528,3.88953,1799.7,1799.6,5.908]
[1743923394751,8.16800516,1799.7,1799.6,6.12031694]
[1743923395235,11.16800516,1799.7,1799.6,5.57031694]
[1743923396471,3.0,1799.7,1799.6,5.57031694]
[1743923398252,6.88953,1799.7,1799.6,5.57031694]
[1743923399080,8.98088516,1799.9,1799.6,6.67734863]
[1743923399233,0.05,1799.9,1799.7,0.55]
[1743923399429,3.05,1799.9,1799.8,0.21209737]
[1743923399771,3.05,1799.9,1799.8,0.76209737]
[1743923400635,3.05,1799.9,1799.8,0.21209737]
[1743923400970,3.88953,1799.8,1799.6,5.358]
[1743923401276,3.88953,1799.7,1799.6,5.8938]
[1743923401436,3.88953,1799.8,1799.6,5.8938]
[1743923402333,7.77902,1799.8,1799.6,5.8938]
[1743923402550,3.88953,1799.7,1799.6,5.358]
[1743923402873,8.16800516,1799.7,1799.6,5.358]
[1743923404072,4.27847516,1799.7,1799.6,5.358]
[1743923405080,6.93911,1799.9,1799.6,5.358]
[1743923405081,11.21758516,1799.9,1799.6,5.358]
[1743923406140,3.8894,1799.8,1799.6,5.358]
[1743923406464,3.88953,1799.7,1799.6,5.358]
[1743923406848,8.16800516,1799.7,1799.6,5.358]
[1743923408202,3.89028,1799.4,1799.1,25.022]
[1743923408368,4.27847516,1799.3,1799.1,25.022]
[1743923408754,4.27847516,1799.3,1799.2,0.55]
[1743923408955,4.27847516,1799.3,1799.1,25.022]
[1743923409173,4.27847516,1799.3,1799.2,0.74390443]
[1743923409355,4.27847516,1799.3,1799.2,0.19390443]
[1743923409554,4.27847516,1799.3,1799.1,27.60365]
[1743923409777,4.27847516,1799.3,1799.2,0.55]
[1743923409980,4.27847516,1799.3,1799.2,0.74390443]
[1743923410287,8.16887516,1799.3,1799.2,0.19390443]
[1743923410589,8.98107516,1799.3,1799.1,25.022]
[1743923410887,8.98107516,1799.3,1799.2,0.19453336]
[1743923411086,8.98107516,1799.3,1799.1,25.022]
[1743923411290,8.98107516,1799.3,1799.2,0.19453336]
[1743923411463,8.16887516,1799.3,1799.1,25.022]
[1743923411665,8.16887516,1799.3,1799.2,0.19453336]
[1743923411859,4.27847516,1799.3,1799.1,25.022]
[1743923412065,4.27847516,1799.3,1799.2,0.19453336]
[1743923412268,4.27847516,1799.3,1799.1,28.908]
[1743923412694,4.27847516,1799.3,1799.2,0.19453336]
[1743923412904,8.16887516,1799.3,1799.1,28.908]
[1743923413063,8.16887516,1799.3,1799.2,0.19453336]
[1743923413404,8.16887516,1799.3,1799.1,28.908]
[1743923413697,8.16887516,1799.3,1799.2,0.19453336]
[1743923414195,8.16887516,1799.3,1799.1,28.908]
[1743923414395,8.16887516,1799.3,1799.2,0.19453336]
[1743923414799,8.16887516,1799.3,1799.1,25.022]
[1743923414990,8.16887516,1799.3,1799.2,0.19453336]
[1743923415606,12.05944516,1799.3,1799.1,25.022]
[1743923415915,8.16887516,1799.3,1799.2,0.19453336]
[1743923416101,8.16887516,1799.3,1799.1,25.022]
[1743923416306,4.27847516,1799.3,1799.2,0.19453336]
[1743923416506,4.27847516,1799.3,1799.1,28.19295]
[1743923416999,4.27847516,1799.3,1799.2,0.19453336]
[1743923417214,8.16887516,1799.3,1799.2,0.19453336]
[1743923417418,12.05947516,1799.3,1799.1,25.022]
[1743923417586,8.16887516,1799.3,1799.2,0.19453336]
[1743923418089,8.16887516,1799.3,1799.1,25.022]
[1743923418418,8.16887516,1799.3,1799.2,0.19453336]
[1743923418920,8.16894516,1799.3,1799.2,0.19453336]
[1743923419120,12.05953516,1799.3,1799.1,25.022]
[1743923419319,3.89061,1799.2,1799.1,25.022]
[1743923419520,7.70281,1799.2,1799.1,25.022]
[1743923419819,8.90876552,1799.2,1799.1,25.022]
[1743923420029,11.62602119,1799.2,1799.1,25.022]
[1743923420510,15.90449635,1799.2,1799.1,25.022]
[1743923420717,3.89157,1798.8,1798.4,1.3445]
[1743923421026,3.89157,1798.8,1798.3,25.02]
[1743923421027,3.89234,1798.4,1798.3,25.02]
[1743923421210,8.17081516,1798.4,1798.3,25.02]
[1743923421928,4.27847516,1798.4,1798.3,25.02]
[1743923424243,4.27847516,1798.4,1798.3,25.20077477]
[1743923424647,8.17081516,1798.4,1798.3,25.20077477]
[1743923425247,11.17081516,1798.4,1798.3,25.20077477]
[1743923427159,3.0,1798.4,1798.3,29.02765225]
[1743923428960,10.88722083,1798.8,1798.4,0.55]
[1743923429167,14.77887083,1798.8,1798.4,5.876]
[1743923429350,14.77887083,1798.8,1798.6,0.55]
[1743923429742,13.88722083,1798.8,1798.7,0.18152398]
[1743923429928,6.99573083,1798.8,1798.7,0.18152398]
[1743923430128,10.88721083,1798.8,1798.7,0.73152398]
[1743923430362,13.88721083,1798.8,1798.7,0.73152398]
[1743923430529,13.88721083,1798.8,1798.7,0.18152398]
[1743923430961,3.89191,1798.6,1798.5,0.55]
[1743923431164,8.99188516,1798.6,1798.5,5.326]
[1743923431372,7.78458,1798.5,1798.3,25.02]
[1743923431581,3.89229,1798.5,1798.3,28.0547]
[1743923431882,3.89186,1798.7,1798.4,1.346]
[1743923432262,3.89171,1798.7,1798.4,1.346]
[1743923432793,6.89171,1798.7,1798.4,1.346]
[1743923438933,10.78357,1798.7,1798.4,1.346]
[1743923439233,3.89191,1798.6,1798.5,0.44666666]
[1743923441335,6.89171,1798.7,1798.6,0.55]
[1743923441830,6.89171,1798.7,1798.6,0.99654204]
[1743923445296,6.99573083,1798.8,1798.6,0.99654204]
[1743923445729,2.71725567,1798.8,1798.6,6.29654204]
[1743923445929,3.89127,1798.9,1798.7,1.4153542]
[1743923446240,3.89127,1798.9,1798.7,1.86171917]
[1743923451878,2.71725567,1799.1,1798.8,0.55]
[1743923452077,3.89069,1799.2,1798.9,0.88738603]
[1743923452369,8.16891516,1799.3,1799.1,0.55]
[1743923452538,4.27847516,1799.3,1799.1,1.1346]
[1743923452737,7.27847516,1799.3,1799.2,0.99547988]
[1743923452941,4.27847516,1799.3,1799.2,0.99547988]
[1743923453444,4.27847516,1799.3,1799.2,1.82727988]
[1743923454135,2.71725567,1799.4,1799.3,0.55]
[1743923454565,2.71725567,1799.4,1799.3,0.99535537]